Cogmind - Beta 9.1 @@@ ROGUE MODE // 2019.11.04 @ 13:21:49 Player: arsonius Result: Destroyed by G-34 Mercenary with Small Laser Performance ------------- Evolutions (0) 0 Regions Visited (4) 800 Robots Destroyed (32) 160 Value Destroyed (702) 702 Prototype IDs (22) 440 Alien Tech Used (0) 0 Bonus (300) 300 TOTAL SCORE: 2402 Bonus ------- Aligned with FarCom 300 Cogmind --------- Core Integrity 0/250 Matter 250/300 Energy 250/250 System Corruption 0% Temperature Cool (21) Location -9/Mines Parts ------- Power (1) Ion Engine Propulsion (2) Hover Unit Hover Unit Utility (2) Lightpack 2.0 Weapon (2) Light Assault Rifle Light Cannon Inventory (24) Ion Engine Hover Unit Heat Sink Cooling System Large Storage Unit Large Storage Unit High-capacity Matter Pod (200) Structural Scanner Signal Interpreter Core Shielding Propulsion Shielding Small Laser Heavy Assault Rifle Rocket Launcher Peak State ------------ Power Ion Engine Propulsion Hover Unit Hover Unit Utility Lightpack 2.0 Weapon Light Assault Rifle Light Cannon Inventory Ion Engine Hover Unit Hover Unit Hover Unit Large Storage Unit Large Storage Unit High-capacity Matter Pod Structural Scanner Signal Interpreter Core Shielding [Rating: 26] Favorites ----------- Power Ion Engine Engine Ion Engine Power Core Light Nuclear Core Propulsion Hover Unit Leg Aluminum Leg Hover Unit Hover Unit Utility Large Storage Unit Device Sensor Array Storage Large Storage Unit Protection Core Shielding Weapon Light Assault Rifle Energy Gun EM Pulse Gun Energy Cannon Beam Cannon Ballistic Gun Light Assault Rifle Ballistic Cannon Light Cannon Build | -11 -10 -10 -10 -9 ------- Run | Scr Mat Min Exi Min Slots Evolved . | . . . . . Power . | . . . . . Propulsion . | . . . . . Utility . | . . . . . Weapon . | . . . . . Parts Attached 30 | 6 18 3 1 2 Power 7 | 1 5 1 . . Engine 6 | 1 4 1 . . Core 1 | . 1 . . . Reactor . | . . . . . Propulsion 8 | 2 4 . . 2 Treads . | . . . . . Leg 2 | 2 . . . . Wheel . | . . . . . Hover 6 | . 4 . . 2 Flight . | . . . . . Utility 6 | 1 3 1 1 . Device 2 | . 2 . . . Storage 3 | 1 1 . 1 . Processor . | . . . . . Hackware . | . . . . . Protection 1 | . . 1 . . Artifact . | . . . . . Weapon 9 | 2 6 1 . . Energy Gun 2 | . 2 . . . Energy Cannon 1 | . 1 . . . Ballistic Gun 5 | 2 2 1 . . Ballistic Cannon 1 | . 1 . . . Launcher . | . . . . . Special Weapon . | . . . . . Impact Weapon . | . . . . . Slashing Weapon . | . . . . . Piercing Weapon . | . . . . . Special Melee Weapon . | . . . . . Unidentified Prototypes . | . . . . . Parts Lost 7 | . 3 2 . 2 Power 1 | . 1 . . . Propulsion 3 | . 1 . . 2 Utility 1 | . . 1 . . Weapon 2 | . 1 1 . . Highest Loss Streak 2 | . 1 1 . 2 Average Slot Usage (%) 95 | . 99 94 93 85 Engine 13 | . 12 14 14 14 Leg 3 | . 6 . . . Hover 24 | . 21 28 28 28 Device 8 | . 13 6 . . Storage 14 | . 14 14 14 14 Protection 2 | . . 7 7 . Energy Gun 2 | . 3 1 . . Energy Cannon 4 | . 7 . . . Ballistic Gun 12 | . 13 7 14 14 Ballistic Cannon 7 | . 3 14 14 14 Naked Turns . | . . . . . Heaviest Build 28 | 11 28 27 26 14 Greatest Support 20 | 20 20 12 12 12 Greatest Overweight (x) 2 | . 2 2 2 1 Average Overweight (x) 1 | . 1 2 1 1 Largest Inventory Capacity 24 | 6 10 10 24 24 Average Capacity 11 | 5 8 10 16 24 Most Carried 16 | 5 10 10 11 16 Average Carried 9 | 3 8 9 9 14 Final Capacity 24 | 6 10 10 24 24 Final Carried 14 | 4 10 9 11 14 Class Distribution -------------------- 81% | Mutant 18% | Hauler-Mutant Dominant Class ---------------- Mutant | -10/Materials Mutant | -10/Mines Mutant | -10/Exiles Hauler-Mutant | -9/Mines Resources | -11 -10 -10 -10 -9 ----------- Run | Scr Mat Min Exi Min Matter Collected 1005 | 260 580 117 10 38 Remotely . | . . . . . Salvage Created 828 | . 505 186 . 137 Parts 61 | . 44 12 . 5 Haulers Intercepted 2 | . 2 . . . Recyclers Shooed . | . . . . . Parts Field Recycled . | . . . . . Retrieved Matter . | . . . . . Parts Self-Destructed . | . . . . . Prevented . | . . . . . Kills | -11 -10 -10 -10 -9 ------- Run | Scr Mat Min Exi Min Combat Hostiles Destroyed 26 | . 14 7 . 5 Guns 11 | . 10 1 . . Cannons 15 | . 4 6 . 5 Classes Destroyed 6 | . 5 . . 1 Hauler 2 | . 2 . . . Operator 2 | . 2 . . . Watcher 2 | . 2 . . . Swarmer 12 | . 9 3 . . Grunt 13 | . 5 4 . 4 Assembled 1 | . . . . 1 Best Kill Streak 6 | . 6 4 . 3 Combat Bots Only 6 | . 6 4 . 3 Max Kills in Single Turn 1 | . 1 1 . 1 Gunslinging . | . . . . . Exploded . | . . . . . Melee . | . . . . . Uniques/NPCs Destroyed . | . . . . . Combat | -11 -10 -10 -10 -9 -------- Run | Scr Mat Min Exi Min Damage Taken 1156 | . 664 326 . 166 Core 252 | . 107 92 . 53 Absorbed by Shields . | . . . . . Core Remaining (%) 100 | 100 . . . . Volleys Fired 161 | . 111 33 . 17 Largest 2 | . 2 1 . 1 Hottest 65 | . 65 40 . 35 Shots Fired 163 | . 113 33 . 17 Gun 108 | . 96 12 . . Cannon 55 | . 17 21 . 17 Launcher . | . . . . . Special . | . . . . . Kinetic 92 | . 51 24 . 17 Thermal 45 | . 45 . . . Explosive . | . . . . . Electromagnetic 26 | . 17 9 . . Robot Hit Streak 15 | . 9 9 . 15 Robot Miss Streak 8 | . 8 3 . 1 Penetration Max . | . . . . . Secondary Targets . | . . . . . Shots Hit Robots 106 | . 68 23 . 15 Core Hits 45 | . 26 11 . 8 Critical Hits 1 | . 1 . . . Critical Kills . | . . . . . Critical Parts Destroyed 1 | . 1 . . . Melee Attacks . | . . . . . Impact . | . . . . . Slashing . | . . . . . Piercing . | . . . . . Sneak Attacks . | . . . . . Combat Hostiles . | . . . . . Follow-up Attacks . | . . . . . Damage Inflicted 1693 | . 1002 407 . 284 Guns 898 | . 759 139 . . Cannons 795 | . 243 268 . 284 Explosions . | . . . . . Melee . | . . . . . Ramming . | . . . . . Kinetic 905 | . 334 287 . 284 Thermal 512 | . 512 . . . Explosive . | . . . . . Electromagnetic 276 | . 156 120 . . Impact . | . . . . . Slashing . | . . . . . Piercing . | . . . . . Highest Corruption . | . . . . . Average Corruption . | . . . . . Corruption Purged . | . . . . . Overload Shots . | . . . . . Overflow Damage 14 | . 6 8 . . Projectiles 14 | . 6 8 . . Explosions . | . . . . . Melee . | . . . . . Knockbacks 4 | . . 1 . 3 Impact . | . . . . . Kinetic 3 | . . 1 . 2 Secondary 1 | . . . . 1 Self-Inflicted Damage . | . . . . . Shots . | . . . . . Rammed . | . . . . . Targets Rammed . | . . . . . Kicked . | . . . . . Crushed . | . . . . . Highest Temperature 132 | . 132 96 . 20 Average Temperature 35 | . 42 26 . 12 Received Heat Transfer 360 | . 189 120 . 51 Siege Activations . | . . . . . Robots Corrupted . | . . . . . Combat Hostiles . | . . . . . Parts Fried 2 | . 2 . . . Impact Corruptions . | . . . . . Robots Melted . | . . . . . Combat Hostiles . | . . . . . Parts Melted 2 | . 2 . . . Heat Transferred 1147 | . 1147 . . . Parts Sabotaged . | . . . . . Parts Stolen . | . . . . . Parts Stripped . | . . . . . Power Chain Reactions . | . . . . . Missiles Intercepted . | . . . . . Alert | -11 -10 -10 -10 -9 ------- Run | Scr Mat Min Exi Min Peak Influence 272 | . 272 100 . 85 Average Influence 56 | . 57 52 . 63 Maximum Alert Level 1 | . 1 . . . Low Security (%) 95 | . . . . . Level 1 4 | . . . . . Level 2 . | . . . . . Level 3 . | . . . . . Level 4 . | . . . . . Level 5 . | . . . . . High Security . | . . . . . Max Security . | . . . . . Squads Dispatched 2 | . 2 . . . Investigation . | . . . . . Extermination . | . . . . . Reinforcement 2 | . 2 . . . Assault . | . . . . . Garrison . | . . . . . Intercept . | . . . . . Construction Impeded . | . . . . . Haulers Reinforced . | . . . . . Stealth | -11 -10 -10 -10 -9 --------- Run | Scr Mat Min Exi Min Distress Signals 4 | . 4 . . . Communications Jammed . | . . . . . Distress Signals . | . . . . . Times Spotted 58 | . 36 15 . 7 Peak Tracking Total 9 | . 9 3 . 3 Tactical Retreats 7 | . 2 5 . . Traps | -11 -10 -10 -10 -9 ------- Run | Scr Mat Min Exi Min Traps Triggered 1 | . 1 . . . Indirectly . | . . . . . Trap Hack Attempts . | . . . . . Triggered . | . . . . . Disarmed . | . . . . . Reprogrammed . | . . . . . Reused . | . . . . . Traps Extracted . | . . . . . Installed . | . . . . . Triggered 1 | . . . . 1 Machines | -11 -10 -10 -10 -9 ---------- Run | Scr Mat Min Exi Min Machines Disabled 2 | . 2 . . . Max in Single Turn 1 | . 1 . . . Machines Sabotaged . | . . . . . Garrisons Compromised . | . . . . . Overloaded Fab Kills . | . . . . . Fab Network Shutdowns . | . . . . . Hacking | -11 -10 -10 -10 -9 --------- Run | Scr Mat Min Exi Min Machines Accessed 11 | . 7 . 4 . Terminals 6 | . 6 . . . Fabricators . | . . . . . Repair Stations . | . . . . . Recycling Units 1 | . 1 . . . Scanalyzers . | . . . . . Garrison Access . | . . . . . Total Hacks 34 | . 29 . 5 . Successful 15 | . 10 . 5 . Failed 19 | . 19 . . . Catastrophic . | . . . . . Database Lockouts . | . . . . . Manual 7 | . 6 . 1 . Terminals 25 | . 25 . . . Fabricators . | . . . . . Repair Stations . | . . . . . Recycling Units 4 | . 4 . . . Scanalyzers . | . . . . . Garrison Access . | . . . . . Terminal Hacks 14 | . 9 . 5 . Record 4 | . . . 4 . Robot Analysis 1 | . 1 . . . Branch Access Points 1 | . 1 . . . Emergency Access Points 1 | . 1 . . . Locate Traps 3 | . 3 . . . Surveillance Status 1 | . 1 . . . Registered Prototypes 1 | . 1 . . . Zone Layout 1 | . 1 . . . EX-Prototype ID Bank 1 | . . . 1 . Fabricator Hacks . | . . . . . Repair Station Hacks . | . . . . . Recycling Unit Hacks 1 | . 1 . . . Retrieve Components 1 | . 1 . . . Scanalyzer . | . . . . . Garrison Access Hacks . | . . . . . Unauthorized Hacks . | . . . . . Terminals . | . . . . . Fabricators . | . . . . . Repair Stations . | . . . . . Recycling Units . | . . . . . Scanalyzers . | . . . . . Garrison Access . | . . . . . Data Cores Recovered . | . . . . . Used . | . . . . . Hacking Detections 7 | . 7 . . . Full Trace Events . | . . . . . Feedback Events . | . . . . . Feedback Blocked . | . . . . . Robot Schematics Acquired . | . . . . . Robots Built . | . . . . . Matter . | . . . . . Time . | . . . . . Total Robot Build Rating . | . . . . . Part Schematics Acquired . | . . . . . Parts Built . | . . . . . Matter . | . . . . . Time . | . . . . . Total Part Build Rating . | . . . . . Parts Repaired . | . . . . . Time . | . . . . . Parts Recycled . | . . . . . Recycled Matter . | . . . . . Retrieved Matter . | . . . . . Retrieved Components 10 | . 10 . . . Parts Scanalyzed . | . . . . . Part Schematics Acquired . | . . . . . Parts Damaged . | . . . . . Bothacking | -11 -10 -10 -10 -9 ------------ Run | Scr Mat Min Exi Min Used RIF Installer . | . . . . . Robots Hacked . | . . . . . Non-combat . | . . . . . Combat . | . . . . . Robot Hacks Applied . | . . . . . Relay Couplers Released . | . . . . . Robots Rewired . | . . . . . Allies Hacked . | . . . . . Hacks Repelled . | . . . . . Allies | -11 -10 -10 -10 -9 -------- Run | Scr Mat Min Exi Min Total Allies . | . . . . . Largest Group . | . . . . . Highest-Rated Group . | . . . . . Highest-Rated Ally . | . . . . . Total Orders . | . . . . . Ally Attacks . | . . . . . Total Damage . | . . . . . Kills . | . . . . . Allies Corrupted . | . . . . . Allies Melted . | . . . . . Intel | -11 -10 -10 -10 -9 ------- Run | Scr Mat Min Exi Min Robot Analysis Total 1 | . 1 . . . Derelict Logs Recovered . | . . . . . Drone Launches . | . . . . . Drone Recoveries . | . . . . . Exploration | -11 -10 -10 -10 -9 ------------- Run | Scr Mat Min Exi Min Turns Passed 3790 | 64 2127 576 609 414 Spaces Moved 2175 | 46 1174 270 421 264 Core 9 | 9 . . . . Treads . | . . . . . Legs 285 | 37 248 . . . Wheels . | . . . . . Hover 1881 | . 926 270 421 264 Flight . | . . . . . Fastest Speed 50 | 50 116 176 116 116 Average Speed 147 | 106 151 176 142 116 Slowest Speed 180 | 120 180 176 176 116 Overloaded Moves . | . . . . . Propulsion Burnouts . | . . . . . Robots Hopped . | . . . . . Cave-ins Triggered . | . . . . . Exploration Rate (%) 52 | 3 99 31 81 48 Regions Visited 4 Branch Regions 3 Pre-discovered Areas 2 | . . 1 1 . Known Exits Taken 1 | . 1 . . . Unknown Exits Taken 3 | 1 . 1 1 . Scrap Searched 1 | . . . . 1 Spaces Dug . | . . . . . Terrain Destroyed . | . . . . . Melee . | . . . . . Projectile . | . . . . . AOE . | . . . . . Actions | -11 -10 -10 -10 -9 --------- Run | Scr Mat Min Exi Min Total 2596 | 59 1412 340 430 355 Wait 152 | 1 53 31 . 67 Move 2171 | 45 1173 269 420 264 Hop . | . . . . . Pick Up 49 | 7 28 2 7 5 Fast Attach 14 | 3 10 . 1 . Attach 9 | 3 2 2 . 2 Detach 1 | . . . 1 . Swap 7 | . 6 1 . . Drop 32 | . 29 2 1 . Fire 161 | . 111 33 . 17 Melee . | . . . . . Ram . | . . . . . Kick . | . . . . . Crush . | . . . . . Escape Stasis . | . . . . . Rewire . | . . . . . Trap . | . . . . . Miscellaneous . | . . . . . Route ------- -11/Scrapyard -10/Materials (discovered 4 exits: [*Mat x3] / *Min) -10/Mines -10/Exiles (discovered 2 exits: [*Min x2]) -9/Mines (discovered 2 exits: [*Mat x2]) History --------- Turn | Location | Event 13 | -11/Scrapyard | Discovered new exit (range 15) 65 | -11/Scrapyard | Entered Materials 189 | -10/Materials | Discovered new exit (range 11) 335 | -10/Materials | Build established: Mutant 758 | -10/Materials | Discovered new exit (range 4) 794 | -10/Materials | Discovered new exit (range 13) 1384 | -10/Materials | Identified exit to Mines 1557 | -10/Materials | Discovered new exit (range 4) 2192 | -10/Materials | Entered Mines 2193 | -10/Mines | Learned location of Storage (-7) 2309 | -10/Mines | Core integrity fell below 50% 2502 | -10/Mines | Deemed a non-threat by the Exiles lab entrance 2504 | -10/Mines | Discovered new exit (range 5) 2768 | -10/Mines | Entered Exiles 2797 | -10/Exiles | Discovered new exit (range 14) 2856 | -10/Exiles | Met 8R-AWN 2881 | -10/Exiles | Met EX-HEX 2937 | -10/Exiles | Met EX-BIN 2966 | -10/Exiles | Aligned with FarCom system 2967 | -10/Exiles | Given EX-Vault access code 3011 | -10/Exiles | Opened EX-Vault 3097 | -10/Exiles | Found Lightpack 2.0 3138 | -10/Exiles | Warned to stay clear of 0b10 Research branches 3171 | -10/Exiles | Met EX-DEC 3190 | -10/Exiles | Learned location of Zion (-6) 3270 | -10/Exiles | Visited The Gauntlet 3363 | -10/Exiles | Discovered new exit (range 14) 3377 | -10/Exiles | Left Exiles lab with Lightpack 2.0 3377 | -10/Exiles | Entered Mines 3384 | -9/Mines | Build established: Hauler-Mutant 3401 | -9/Mines | Core integrity fell below 20% 3479 | -9/Mines | Discovered new exit (range 8) 3482 | -9/Mines | Discovered new exit (range 8) 3489 | -9/Mines | Received a Rocket Launcher from a helpful Derelict 3711 | -9/Mines | Excavation squad dispatched 3711 | -9/Mines | A large section of the Mines collapsed 3791 | -9/Mines | Destroyed by G-34 Mercenary with Small Laser Last Messages --------------- I'm going to lend you mine." KO-N5I(g) slips back into the shadows. Acquired Rocket Launcher. A derelict is hurriedly installing traps. YX-5JR(g): "Hehe, this'll put a wrench in their mining defense operations..." YX-5JR(g) slips into the shadows. Searching scrap... Found 37 Matter. Found Hvy. Assault Rifle. Found Cooling System. Acquired Cooling System. Acquired Hvy. Assault Rifle. T-07 Excavator is excavating. K-01 Serf collects debris. ALERT: Suspicious cave-in, suspected derelict activity in mines. Dispatching escorted excavation squad. Hover Unit destroyed. as-89749 destroyed. G-34 Mercenary destroyed. T-07 Excavator is excavating. Map ----- +----------------------------------------------------+ | ????????????????# #??????#####?????????????? | | ????????????##### #????????????????????????? | | ????????????# #????????????????????????? | | ????????????# ## ##????????????????????????? | | ????????????# ## ##????????????????????????? | | ????????????# ## ##???????????????????????? | | ????????????# ##??????????????????????? | | ??????###???#### ##?????????????????????? | | ?????## #????## #?????????????????????? | | ?????# #?### #?????????????????????? | | ?????# ## ##?????????????????????? | | ??????# ##??????????????????????? | | ??????## ###???????????????????????? | | ???????# ##?????????????????????????? | | ???????# ###??????????????????????????? | | ???????# ##????????????????????????????? | | ???????# ##????????????????????????????? | | ???????# ##???????????????????????????? | | ???????# #??????????????? ???????????? | | ???????# % #?????####??##?? #??????????? | | ???????## ##????## ##? ?? #??????????? | | ????????## ###????## #? #?? #??????????? | | ?????????# #?????## #? #?? #??????????? | | ?????????# #????## ## #?? ##?????????? | | ?????????# #??###### #?? ??????????? | | ?????????# ####g @# ## ##?# #??????????? | | ?????##### %g t ####### #?## #??????????? | | ????## t ####???# ### ##?????????? | | ????# ##??????# #?????????? | | ???## #???????#### ##????????? | | ??## ### ##??????????# ##???????? | | ??# ##?####???????????# ##??????? | | ??# #?????????????????# #??????? | | ??# #?????????????????# #??????? | | ??## ####????????????????## ##??????? | | ???## #???????????????????# #???????? | | ????# #???????????????????# ####????? | | ????# #???????????????????# ##???? | | ????# #???????????????????## #???? | | ????# #????????????????????## #???? | | ????# #?????###?????????????## ##??? | | ????# ###### #??????????????## ###? | | ????# #???????????????## ## | | ????# #????????????????# | | ????############????????????????## | | ?????????????????????????????????## | | ??????????????????????????????????# ### | | ?????????????????????????????????# #??? | | ?????????????????????????????????# ##??? | | ?????????????????????????????????## ###???? | +----------------------------------------------------+ Best States ------------- Heat Dissipation 39 Energy Generation 14 Energy Capacity 250 Matter Stores 300 Matter Capacity 300 Sight Range 16 Robot Scan Range 10 Terrain Scan Density 10 Core Shielding 20 Evasion (%) 50 Item Schematics ----------------- None Robot Schematics ------------------ None Fabricated ------------ Nothing Alien Tech Used ----------------- None Achievements -------------- None Challenges ------------ None Game ------ Seed GyrokineticNetworkCapacitor Manual? 0 Play Time 00:58:54 Cumulative 38.0 hours Start 2019.11.04 @ 11:12:15 End 2019.11.04 @ 13:21:49 Sessions 1 Manual Loads 0 Difficulty Rogue Special Mode None Game No. 13 Rogue 13 Adventurer 0 Explorer 0 Win Type - Total 0 Types 0/0/0/0/0/0/0 Lore% 25 Gallery% 36 Achievement% 27 Wizard Run 0 Options --------- ASCII 1 Keyboard 0 Movement Numpad Keybinds 0 Fullscreen 1 Font 12/Smallcaps Map View 83x54 Tactical HUD 0 Map Filters NONE Filters NONE Steam 1 RUN: 92e79fec-691a-4c99-b21a-67226594c31c